Cogmind - Beta 15 @@@ ROGUE MODE // 2025.09.17 @ 00:40:21 Player: harambe Result: Destroyed by UD-JO1(R) with Subdweller Laser Performance ------------- Evolutions (0) 0 Regions Visited (3) 600 Robots Destroyed (15) 75 Value Destroyed (460) 460 Prototype IDs (0) 0 Alien Tech Used (0) 0 Bonus (0) 0 TOTAL SCORE: 1135 Bonus ------- None Cogmind --------- Core Integrity 0/250 Matter 288/300 Energy 200/200 System Corruption 0% Temperature Cool (6) Movement Rolling (105) Ox1 Location -10/Subcaves Parts ------- > --- POWER (1) -------- Subdweller Power Source > --- PROPULSION (2) --- Wheel Compact Wheel > --- UTILITY (2) ------ Improved Heat Sink Large Storage Unit > --- WEAPON (2) ------- Subdweller Laser Subdweller Machine Gun > --- INVENTORY (15) --- Light Ion Engine Subdweller Power Source Subdweller Power Source Spiked Treads Wheel Subdweller Monowheel Flight Unit Large Storage Unit Large Matter Pod (150) Large Matter Pod (132) EM Pulse Gun Battle Cannon Makeshift Axe Scrap Shield Fragment (48) Scrap Shield Fragment (45) Peak State ------------ > --- POWER ------------ Subdweller Power Source > --- PROPULSION ------- Wheel Compact Wheel > --- UTILITY ---------- Large Storage Unit Improved Terrain Scanner > --- WEAPON ----------- Subdweller Laser Subdweller Machine Gun > --- INVENTORY -------- Light Ion Engine Subdweller Power Source Subdweller Power Source Wheel Subdweller Monowheel Improved Heat Sink Small Storage Unit Medium Storage Unit Large Storage Unit Large Matter Pod EM Pulse Gun Light Assault Rifle Battle Cannon Scrap Shield Fragment Scrap Shield Fragment [Rating: 14] Favorites ----------- Power Light Ion Engine Engine Light Ion Engine Propulsion Light Treads Treads Light Treads Leg Aluminum Leg Wheel Compact Wheel Utility Large Storage Unit Device Improved Terrain Scanner Storage Large Storage Unit Weapon Light Assault Rifle Energy Gun Subdweller Laser Ballistic Gun Light Assault Rifle Build | -11 -10 -10 -10 ------- Run | Yrd Mat Min Sub Slots Evolved . | . . . . Power . | . . . . Propulsion . | . . . . Utility . | . . . . Weapon . | . . . . Parts Attached 19 | 4 1 1 13 Power 3 | . . 1 2 Engine 3 | . . 1 2 Core . | . . . . Reactor . | . . . . Propulsion 6 | 2 . . 4 Treads 2 | 2 . . . Leg . | . . . . Wheel 4 | . . . 4 Hover . | . . . . Flight . | . . . . Utility 4 | 1 1 . 2 Device 2 | 1 . . 1 Storage 2 | . 1 . 1 Processor . | . . . . Hackware . | . . . . Protection . | . . . . Artifact . | . . . . Weapon 6 | 1 . . 5 Energy Gun 3 | . . . 3 Energy Cannon . | . . . . Ballistic Gun 3 | 1 . . 2 Ballistic Cannon . | . . . . Launcher . | . . . . Special Weapon . | . . . . Impact Weapon . | . . . . Slashing Weapon . | . . . . Piercing Weapon . | . . . . Special Melee Weapon . | . . . . Unidentified Prototypes . | . . . . Parts Lost 7 | . . . 7 Power 1 | . . . 1 Propulsion 4 | . . . 4 Utility 1 | . . . 1 Weapon 1 | . . . 1 Highest Loss Streak 3 | . . . 3 To Critical Strikes . | . . . . Average Backups 13 | 6 12 15 13 Power 2 | 1 1 2 2 Propulsion 3 | 3 4 5 3 Utility 4 | . 4 5 4 Weapon 2 | 1 2 3 2 Tool/Special . | . . . . Unused Backups 26 | 4 5 1 16 Power 4 | . 1 . 3 Propulsion 10 | 4 1 . 5 Utility 7 | . 2 1 4 Weapon 5 | . 1 . 4 Tool/Special . | . . . . Average Slot Usage (%) 98 | . 100 100 97 Engine 13 | . 14 14 13 Treads 16 | . 28 28 5 Wheel 10 | . . . 21 Device 12 | . 14 14 11 Storage 14 | . 14 14 14 Energy Gun 6 | . . . 13 Ballistic Gun 21 | . 28 28 14 Peak Build Rating 14 | 9 10 10 14 Average Rating 10 | 7 9 10 12 On Entrance 8 | 6 9 10 10 Naked Turns . | . . . . Heaviest Build 53 | 11 26 28 53 Greatest Support 40 | 40 40 40 40 Greatest Overweight (x) 2 | . . . 2 Average Overweight (x) . | . . . . Largest Inventory Capacity 15 | 8 15 15 15 Average Capacity 14 | 8 14 15 15 Most Carried 15 | 8 15 15 15 Average Carried 13 | 6 12 15 14 Final Capacity 15 | 8 15 15 15 Final Carried 15 | 8 15 15 15 Class Distribution -------------------- 68% | Mutant 31% | Scavenger-Mutant Dominant Class ---------------- Mutant | -10/Materials Mutant | -10/Mines Scavenger-Mutant | -10/Subcaves Resources | -11 -10 -10 -10 ----------- Run | Yrd Mat Min Sub Matter Collected 755 | 246 177 59 273 Remotely . | . . . . Salvage Created 651 | 107 177 155 212 Parts 37 | 8 12 6 11 Haulers Intercepted . | . . . . Recyclers Shooed 1 | . . 1 . Parts Field Recycled . | . . . . Retrieved Matter . | . . . . Parts Self-Destructed 9 | . . . 9 Prevented . | . . . . Kills | -11 -10 -10 -10 ------- Run | Yrd Mat Min Sub Combat Hostiles Destroyed 11 | . 4 2 5 Guns 11 | . 4 2 5 Classes Destroyed 5 | 2 2 . 1 Tunneler 1 | 1 . . . Recycler 2 | 1 . 1 . Watcher 1 | . 1 . . Grunt 9 | . 4 2 3 Subdweller 2 | . . . 2 Best Kill Streak 4 | 2 4 3 2 Combat Bots Only 4 | . 4 2 2 Max Kills in Single Turn 1 | 1 1 1 1 Gunslinging . | . . . . Exploded . | . . . . Melee . | . . . . Uniques/NPCs Destroyed . | . . . . Combat | -11 -10 -10 -10 -------- Run | Yrd Mat Min Sub Hostile Shots Fired 91 | . 19 14 58 Missed 26 | . 3 4 19 Hits 65 | . 16 10 39 Projectile 65 | . 16 10 39 Critical Strikes 3 | . . . 3 Damage Taken 982 | . 176 138 668 Core 268 | . 32 14 222 Absorbed by Shields . | . . . . Core Remaining (%) 100 | 100 . . . Volleys Fired 90 | 3 22 11 54 Largest 2 | 2 2 2 2 Hottest 90 | 40 40 40 90 Shots Fired 161 | 6 44 22 89 Gun 161 | 6 44 22 89 Cannon . | . . . . Launcher . | . . . . Special . | . . . . Kinetic 110 | 6 44 22 38 Thermal 51 | . . . 51 Explosive . | . . . . Electromagnetic . | . . . . Robot Hit Streak 11 | 4 7 8 11 Robot Miss Streak 4 | 1 3 1 4 Penetration Max . | . . . . Secondary Targets 1 | . . 1 . Max Gunslinging Chain 1 | . . 1 . Shots Hit Robots 85 | 4 29 18 34 Core Hits 38 | 3 11 8 16 Critical Kills 1 | . . . 1 Critical Parts Destroyed . | . . . . Critical Strikes 1 | . . . 1 Destroy 1 | . . . 1 Melee Attacks . | . . . . Impact . | . . . . Slashing . | . . . . Piercing . | . . . . Sneak Attacks . | . . . . Combat Hostiles . | . . . . Follow-up Attacks . | . . . . Damage Inflicted 811 | 38 234 159 380 Guns 811 | 38 234 159 380 Cannons . | . . . . Explosions . | . . . . Melee . | . . . . Ramming . | . . . . Kinetic 602 | 38 234 159 171 Thermal 209 | . . . 209 Explosive . | . . . . Electromagnetic . | . . . . Impact . | . . . . Slashing . | . . . . Piercing . | . . . . Highest Corruption . | . . . . Average Corruption . | . . . . Corruption Purged . | . . . . Corruption Blocked . | . . . . Overload Shots . | . . . . Overflow Damage . | . . . . Projectiles . | . . . . Explosions . | . . . . Melee . | . . . . Knockbacks . | . . . . Impact . | . . . . Kinetic . | . . . . Secondary . | . . . . Self-Inflicted Damage . | . . . . Shots . | . . . . Rammed . | . . . . Targets Rammed . | . . . . Kicked . | . . . . Crushed . | . . . . Highest Temperature 19 | . 12 19 9 Average Temperature 8 | . 7 9 8 Received Heat Transfer 420 | . 96 84 240 Siege Activations . | . . . . Martial Activations . | . . . . Shielding Activations . | . . . . Robots Disrupted . | . . . . Combat Hostiles . | . . . . Robots Corrupted . | . . . . Combat Hostiles . | . . . . Parts Fried . | . . . . Impact Corruptions . | . . . . Robots Melted . | . . . . Combat Hostiles . | . . . . Parts Melted . | . . . . Heat Transferred 425 | . . . 425 Parts Sabotaged . | . . . . Parts Stolen . | . . . . Parts Stripped . | . . . . Power Chain Reactions . | . . . . Alert | -11 -10 -10 -10 ------- Run | Yrd Mat Min Sub Maximum Alert Level . | . . . . Low Security (%) 100 | 100 100 100 . Level 1 . | . . . . Level 2 . | . . . . Level 3 . | . . . . Level 4 . | . . . . Level 5 . | . . . . High Security . | . . . . Max Security . | . . . . Peak Influence 85 | 10 85 45 . Initial . | . . . . Average 21 | 2 24 21 . Influence Increases 267 | 10 122 55 80 Destroy 0b10 Robot/C 180 | . 80 40 60 Destroy 0b10 Robot/NC 20 | 10 5 5 . Destroy Leader 52 | . 22 10 20 Lose Combat Pursuer 15 | . 15 . . Influence Decreases 267 | 10 122 55 80 Time Decay 257 | 10 122 55 70 Lost Part 10 | . . . 10 Squads Dispatched 2 | . 2 . . Investigation 1 | . 1 . . Extermination . | . . . . Reinforcement 1 | . 1 . . Assault . | . . . . Garrison . | . . . . Intercept . | . . . . Searches Triggered . | . . . . Construction Impeded . | . . . . Haulers Reinforced . | . . . . Active Scanning Responses . | . . . . Cargo Convoy Interrupts . | . . . . Stealth | -11 -10 -10 -10 --------- Run | Yrd Mat Min Sub Distress Signals 1 | . 1 . . Communications Jammed . | . . . . Distress Signals . | . . . . Times Spotted 18 | . 7 2 9 Peak Tracking Total 5 | . 5 2 3 Tactical Retreats 2 | . 1 . 1 Traps | -11 -10 -10 -10 ------- Run | Yrd Mat Min Sub Traps Triggered . | . . . . Indirectly . | . . . . Trap Hack Attempts . | . . . . Triggered . | . . . . Disarmed . | . . . . Reprogrammed . | . . . . Reused . | . . . . Traps Extracted . | . . . . Installed . | . . . . Triggered . | . . . . Machines | -11 -10 -10 -10 ---------- Run | Yrd Mat Min Sub Machines Disabled . | . . . . Max in Single Turn . | . . . . Machines Repaired . | . . . . Machines Dismantled . | . . . . Machines Sabotaged . | . . . . Overloaded Fab Kills . | . . . . Hacking | -11 -10 -10 -10 --------- Run | Yrd Mat Min Sub Machines Accessed 2 | . 2 . . Terminals 2 | . 2 . . Fabricators . | . . . . Repair Stations . | . . . . Recycling Units . | . . . . Scanalyzers . | . . . . Garrison Access . | . . . . Total Hacks 8 | . 8 . . Successful 1 | . 1 . . Failed 7 | . 7 . . Catastrophic 1 | . 1 . . Database Lockouts . | . . . . Manual 3 | . 3 . . Terminals 8 | . 8 . . Fabricators . | . . . . Repair Stations . | . . . . Recycling Units . | . . . . Scanalyzers . | . . . . Garrison Access . | . . . . Terminal Hacks 1 | . 1 . . Locate Traps 1 | . 1 . . Fabricator Hacks . | . . . . Repair Station Hacks . | . . . . Recycling Unit Hacks . | . . . . Scanalyzer . | . . . . Garrison Access Hacks . | . . . . Unauthorized Hacks . | . . . . Terminals . | . . . . Fabricators . | . . . . Repair Stations . | . . . . Recycling Units . | . . . . Scanalyzers . | . . . . Garrison Access . | . . . . Data Cores Recovered . | . . . . Used . | . . . . Hacking Detections 2 | . 2 . . Full Trace Events 1 | . 1 . . Feedback Events . | . . . . Feedback Blocked . | . . . . Robot Schematics Acquired . | . . . . Robots Built . | . . . . Authchips . | . . . . Time . | . . . . Total Robot Build Rating . | . . . . Part Schematics Acquired . | . . . . Parts Built . | . . . . Authchips . | . . . . Time . | . . . . Total Part Build Rating . | . . . . Parts Repaired . | . . . . Time . | . . . . Parts Recycled . | . . . . Recycled Matter . | . . . . Retrieved Matter . | . . . . Retrieved Components . | . . . . Parts Scanalyzed . | . . . . Part Schematics Acquired . | . . . . Parts Damaged . | . . . . Bothacking | -11 -10 -10 -10 ------------ Run | Yrd Mat Min Sub Used RIF Installer . | . . . . Robots Hacked . | . . . . Non-combat . | . . . . Combat . | . . . . Robot Hacks Applied . | . . . . Relay Couplers Released . | . . . . Fabnet Peak Effective % . | . . . . Robots Rewired . | . . . . Allies Hacked . | . . . . Hacks Repelled . | . . . . Allies | -11 -10 -10 -10 -------- Run | Yrd Mat Min Sub Total Allies . | . . . . Largest Group . | . . . . Highest-Rated Group . | . . . . Highest-Rated Ally . | . . . . Total Orders . | . . . . Ally Attacks . | . . . . Total Damage . | . . . . Kills . | . . . . Allies Corrupted . | . . . . Allies Melted . | . . . . Intel | -11 -10 -10 -10 ------- Run | Yrd Mat Min Sub Active Infowar (turns) 1069 | 29 451 125 464 Terrain 1069 | 29 451 125 464 Robot Analysis Total . | . . . . Derelict Logs Recovered 2 | . . . 2 Drone Launches . | . . . . Drone Recoveries . | . . . . Exploration | -11 -10 -10 -10 ------------- Run | Yrd Mat Min Sub Turns Passed 1232 | 47 451 125 609 Spaces Moved 680 | 18 228 60 374 Core . | . . . . Treads 357 | 18 228 60 51 Legs . | . . . . Wheels 323 | . . . 323 Hover . | . . . . Flight . | . . . . Fastest Speed 100 | 160 160 160 100 Average Speed 133 | 160 160 160 112 Slowest Speed 160 | 160 160 160 160 Overloaded Moves . | . . . . Propulsion Burnouts . | . . . . Robots Hopped . | . . . . Potential Cave-ins . | . . . . Cave-ins Triggered . | . . . . Exploration Rate (%) 17 | 2 34 13 22 Regions Visited 3 Branch Regions 2 Pre-discovered Areas 1 | . . 1 . Known Exits Taken . | . . . . Unknown Exits Taken 3 | 1 1 1 . Scrap Searched 4 | . . . 4 Spaces Dug . | . . . . Terrain Destroyed . | . . . . Melee . | . . . . Projectile . | . . . . AOE . | . . . . Terrain Rammed . | . . . . Walls Destroyed . | . . . . Machines Disabled . | . . . . Actions | -11 -10 -10 -10 --------- Run | Yrd Mat Min Sub Total 871 | 30 281 74 486 Wait 37 | . 17 . 20 Move 677 | 17 227 59 374 Hop . | . . . . Pick Up 29 | 4 10 1 14 Fast Attach 1 | 1 . . . Attach 8 | . . . 8 Detach . | . . . . Swap 10 | 3 1 1 5 Drop 19 | 2 4 2 11 Fire 90 | 3 22 11 54 Melee . | . . . . Ram . | . . . . Kick . | . . . . Crush . | . . . . Escape Stasis . | . . . . Rewire . | . . . . Trap . | . . . . Miscellaneous . | . . . . Route ------- -11/Scrapyard -10/Materials (discovered 2 exits: [*Mat] / [*Min]) -10/Mines -10/Subcaves (discovered 1 exit: [*Mat]) History --------- Turn | Location | Event 14 | -11/Scrapyard | Discovered new exit (range 3) 48 | -11/Scrapyard | Entered Materials 304 | -10/Materials | Build established: Mutant 425 | -10/Materials | Discovered new exit (range 8) 435 | -10/Materials | Discovered new exit (range 14) 499 | -10/Materials | Entered Mines 569 | -10/Mines | Learned location of Storage (-7) 621 | -10/Mines | Discovered new exit (range 3) 624 | -10/Mines | Entered Subcaves 625 | -10/Subcaves | A swath of the cavern ceiling suddenly collapsed 632 | -10/Subcaves | Learned Materials emergency access door positions 661 | -10/Subcaves | Core integrity fell below 50% 741 | -10/Subcaves | Core integrity fell below 20% 775 | -10/Subcaves | Learned 2 Materials zone layouts 780 | -10/Subcaves | Lost 3 parts (1p2n) 979 | -10/Subcaves | Discovered new exit (range 6) 1037 | -10/Subcaves | Build established: Scavenger-Mutant 1233 | -10/Subcaves | Destroyed by UD-JO1(R) with Subdweller Laser Last Messages --------------- 01107_ Searching scrap... 01107_ Found Spk. Treads. 01107_ Found Mak. Leg. 01107_ Found 38 Matter. 01113_ Acquired Spk. Treads. 01115_ Dropped Sub. Laser. 01117_ Acquired 10 matter. 01122_ Dropped Lrg. Storage Unit. 01124_ Dropped Sml. Storage Unit. 01125_ Acquired Lrg. Matter Pod. 01127_ Dropped Sub. Machine Gun. 01129_ Acquired 30 matter. 01130_ Acquired 42 matter. 01131_ Acquired 32 matter. 01135_ Acquired 38 matter. 01177_ Dropped Med. Storage Unit. 01177_ Acquired Lrg. Storage Unit. 01180_ Acquired Flight Unit. 01218_ J6-FBU(u) builds Twisted Machinery. 01229_ J6-FBU(u) tweaks Twisted Machinery. Map ----- +----------------------------------------------------+ | ??????????????????# ### #?????????????????? | | ??????????????????# # #?????????????????? | | ????????#?#???????# #?????????????????? | | ??????????????????# ##?????????????????? | | ??????????????????# ###??????????????????? | | #?????????????????# ##????????????????????? | | ???????????????#??# ###???????????????????? | | ??????????????????## ##?#????????????????? | | ??????????????###### ##?????????????????? | | ???#????###??## #?????????????????? | | ????????# #### ####?????????????????? | | ????????#="# #" ### #??#?????????????????? | | ????????# [#[& ! ##??##????????????????????? | | ????????#" #&#"! ##????????????????????????? | | ???????### "## ##?#?????????????????????? | | #????????#### #########???????????????? | | ????????????# ### # ##??????????????? | | ????????????## #??????????????? | | ??#??????????## #??????????????? | | ??????????????# ""## ### ## ##??????????????? | | ??????????????## "####?####"#???????????????? | | #??????????????#""#???####""#???????????????? | | ???????#???????" ""???# """#???????????????? | | ??????????????###"""###"u" ##???????????????? | | ?????????????#???"""""""" #????????????????? | | ?????????????????"""""""R@"#????????????????? | | ???????????????????""""" "##????????????????? | | ???????????????????### """#?????????????????? | | ???????#?????????#???#" ""?????????????????? | | ?????????????????????#"" ?????????????????? | | ?????????????????????# " "?????????????????? | | ?????????????????????##"###?????????????????? | | ???????????????????????#????????????????????? | | ????????????????????????????????????????????? | | ????????????????????????????????????????????? | | ????????????????????????????????????????????? | | ????????????????????????????????????????????? | | ????????????????????????????????????????????? | | ????????????????????????????????????????????? | | ????????????????????????????????????????????? | | ????????????????????????????????????????????? | | ????????????????????????????????????????????? | | ????????????????????????????????????????????? | | ????????????????????????????????????????????? | | ????????????????????????????????????????????? | | ????????????????????????????????????????????? | | ????????????????????????????????????????????? | | ????????????????????????????????????????????? | | ????????????????????????????????????????????? | | ????????????????????????????????????????????? | +----------------------------------------------------+ Best States ------------- Heat Dissipation 39 Energy Generation 15 Energy Capacity 250 Matter Stores 300 Matter Capacity 300 Sight Range 16 Terrain Scan Range 16 Terrain Scan Density 10 Evasion (%) 40 Recoil Reduction 2 Item Schematics ----------------- None Robot Schematics ------------------ None Fabricated ------------ Nothing Repaired ---------- Nothing Alien Tech Used ----------------- None Achievements -------------- None Challenges ------------ None Game ------ Seed GunVampiricPerforator Manual? 0 Play Time 00:28:24 Cumulative 190.7 hours Start 2025.09.17 @ 00:13:03 End 2025.09.17 @ 00:40:21 Sessions 1 Manual Loads 0 Difficulty Rogue Special Mode None Game No. 97 Rogue 97 Adventurer 0 Explorer 0 Win Type - Total 3 Types 3/0/0/0/0/0/0/0/0/0 Lore% 32 Gallery% 49 Achievement% 42 Wizard Run 0 Options --------- Layout 0 ASCII 0 Keyboard 0 Movement Mouse Keybinds 0 Fullscreen 1 Font 18/SmallcapsGlow Map View 76x50 Zoom Use 0% Tactical HUD 1 Map Filters NONE Filters NONE Steam 1 RUN: 056abc60-3c84-49c6-90af-951570c959ec